bitfinex/quotes_SOLUSD_20260220
["timestamp","ask_amount","ask_price","bid_price","bid_amount"]
[1771590176936,0.57502525,83.836,83.812,0.53707313]
[1771590178247,0.57502525,83.834,83.812,0.53707313]
[1771590178438,0.57502525,83.834,83.806,11.93223616]
[1771590179732,0.57502525,83.829,83.8,11.93303492]
[1771590180133,0.57502525,83.829,83.8,16.310989]
[1771590180336,0.57502525,83.829,83.801,0.54050373]
[1771590180541,0.57502525,83.827,83.8,11.93303492]
[1771590180739,4.37795408,83.82,83.787,11.93497641]
[1771590180931,0.57502525,83.819,83.787,11.93497641]
[1771590183937,0.57502525,83.817,83.787,0.54297462]
[1771590186148,0.57924864,83.815,83.782,0.14216157]
[1771590186860,0.57924864,83.815,83.783,0.54613871]
[1771590189260,29.8269029,83.817,83.783,0.54613871]
[1771590189261,0.59210655,83.809,83.783,0.54613871]
[1771590189760,0.59210655,83.809,83.785,0.54915992]
[1771590191553,0.59210655,83.807,83.785,0.54915992]
[1771590194765,11.93231988,83.806,83.785,0.54915992]
[1771590194966,0.59210655,83.805,83.78,12.48865219]
[1771590195369,11.93231988,83.806,83.714,47.78172321]
[1771590195370,0.59210655,83.799,83.767,11.93781412]
[1771590195687,0.59210655,83.789,83.767,11.93781412]
[1771590196883,0.59210655,83.789,83.767,12.49193658]
[1771590200287,0.59210655,83.789,83.75,4.37795408]
[1771590200288,0.59210655,83.787,83.761,0.55678314]
[1771590200874,11.93488327,83.788,83.752,0.55678314]
[1771590200875,0.59210655,83.779,83.752,0.55678314]
[1771590201589,0.59210655,83.779,83.751,11.94015593]
[1771590201590,0.59210655,83.779,83.754,0.55742931]
[1771590201788,0.59210655,83.792,83.761,0.55742931]
[1771590201982,0.59210655,83.792,83.765,0.55742931]
[1771590203493,0.59210655,83.792,83.766,11.93801781]
[1771590203697,0.59210655,83.792,83.767,0.55869949]
[1771590206505,0.59210655,83.789,83.767,0.55869949]
[1771590206714,0.59210655,83.789,83.768,11.93773278]
[1771590210908,0.59210655,83.789,83.759,29.84733925]
[1771590211218,0.59210655,83.779,83.741,0.56292096]
[1771590211499,0.59210655,83.779,83.742,0.14216157]
[1771590211700,0.59210655,83.779,83.745,0.56349664]
[1771590212513,0.59210655,83.777,83.747,0.56406571]
[1771590213707,0.59210655,83.789,83.751,0.56462824]
[1771590213911,0.59210655,83.789,83.755,0.56462824]
[1771590214824,0.59210655,83.779,83.756,11.93944314]
[1771590218215,0.59210655,83.779,83.756,12.50731345]
[1771590220632,0.63431954,83.777,83.748,0.56890201]
[1771590227331,0.63431954,83.775,83.746,29.85217204]
[1771590227513,0.63431954,83.775,83.746,30.42450295]
[1771590227844,0.63431954,83.775,83.747,0.57233091]
[1771590231638,0.63431954,83.775,83.751,0.57416932]
[1771590232644,0.63431954,83.773,83.748,11.94058365]
[1771590233938,0.63431954,83.773,83.741,0.71721873]
[1771590234139,0.63431954,83.778,83.741,0.71721873]
[1771590236019,0.63431954,83.776,83.746,0.57592471]
[1771590238131,0.63431954,83.782,83.748,0.57718904]
[1771590238334,0.63431954,83.794,83.755,0.14216157]
[1771590238542,0.63431954,83.794,83.756,0.57718904]
[1771590239238,12.5676366,83.799,83.764,0.57760083]
[1771590239426,0.63431954,83.798,83.766,0.57760083]
[1771590241050,0.63431954,83.798,83.768,0.72016947]
[1771590243653,0.63431954,83.798,83.771,0.57920126]
[1771590243851,0.63431954,83.798,83.775,0.57920126]
[1771590244068,0.63431954,83.807,83.777,0.57920126]
[1771590244244,0.63431954,83.816,83.783,0.57958995]
[1771590244551,0.63431954,83.809,83.784,0.14216157]
[1771590244856,0.63431954,83.809,83.784,0.72175152]
[1771590246159,11.92942569,83.827,83.791,0.62579722]
[1771590246325,11.92942569,83.827,83.793,0.62579722]
[1771590246530,11.92942569,83.827,83.795,0.62579722]
[1771590248350,0.5938251,83.848,83.811,0.77983242]
[1771590248551,0.5938251,83.854,83.821,0.77983242]
[1771590251359,4.38450349,83.86,83.823,0.77983242]
[1771590251360,0.5938251,83.852,83.823,0.77983242]
[1771590251735,0.5938251,83.849,83.814,0.14216157]
[1771590251929,0.5938251,83.849,83.814,0.77983242]
[1771590252748,3.69383402,83.876,83.82,4.38450349]
[1771590252956,0.5938251,83.875,83.851,0.63767085]
[1771590253343,0.5938251,83.875,83.85,11.9259281]
[1771590254141,0.5938251,83.875,83.851,0.63767085]
[1771590256655,0.5938251,83.875,83.852,11.92577398]
[1771590256957,0.5938251,83.875,83.852,12.56344483]
[1771590257153,0.5938251,83.875,83.852,11.92577398]
[1771590257352,0.5938251,83.875,83.852,12.56344483]
[1771590259054,0.5938251,83.875,83.853,0.63767085]
[1771590261457,0.5938251,83.869,83.838,0.63767085]
[1771590261665,0.5938251,83.859,83.826,12.56712158]
[1771590261848,0.5938251,83.859,83.827,0.63767085]
[1771590263561,0.5938251,83.858,83.829,0.63767085]
[1771590265170,0.5938251,83.858,83.831,0.63767085]
[1771590266166,0.5938251,83.856,83.831,0.63767085]
[1771590269668,0.5938251,83.856,83.833,0.63767085]
[1771590271564,0.5938251,83.856,83.834,11.92833456]
[1771590271757,0.5938251,83.856,83.835,0.63767085]
[1771590275452,0.5938251,83.855,83.835,0.63767085]
[1771590278065,0.55448967,83.853,83.825,12.07177683]
[1771590279070,0.55448967,83.853,83.826,0.6114959]
[1771590279657,0.55448967,83.853,83.827,11.92933064]
[1771590279956,0.55448967,83.853,83.828,0.6114959]
[1771590280175,0.55448967,83.853,83.831,0.6114959]
[1771590281456,0.55448967,83.853,83.833,0.6114959]
[1771590294271,0.55448967,83.853,83.835,0.6114959]
[1771590294485,0.55448967,83.871,83.841,0.6114959]
[1771590294785,0.55448967,83.869,83.841,0.6114959]
[1771590296591,4.38450349,83.87,83.843,0.6114959]
[1771590296592,0.55448967,83.867,83.843,0.6114959]
[1771590297888,11.92378317,83.866,83.843,0.6114959]
[1771590298074,0.55448967,83.865,83.843,0.6114959]
[1771590298590,0.55448967,83.865,83.842,11.92719639]
[1771590299190,0.55448967,83.865,83.838,0.6114959]
[1771590300281,0.55448967,83.863,83.838,0.6114959]
[1771590301668,11.92435191,83.862,83.839,11.92762318]
[1771590301873,0.55448967,83.859,83.829,0.6114959]
[1771590303894,0.55448967,83.857,83.831,0.6114959]
[1771590305296,0.57015228,83.869,83.833,0.53114398]
[1771590305483,0.57015228,83.868,83.841,0.53114398]
[1771590308199,0.57015228,83.868,83.843,0.57364135]
[1771590308395,0.57598142,83.879,83.845,0.57364135]
[1771590309299,0.57598142,83.878,83.845,0.57364135]
[1771590309678,0.57598142,83.878,83.848,0.14216157]
[1771590309882,0.57598142,83.879,83.861,0.57364135]
[1771590310081,0.57598142,83.879,83.856,11.92520511]
[1771590310598,0.57598142,83.879,83.857,0.57364135]
[1771590311183,0.1,83.89,83.871,0.57364135]
[1771590311383,0.57598142,83.903,83.872,0.71580292]
[1771590312093,0.67598142,83.9,83.874,0.71580292]
[1771590312296,0.57598142,83.898,83.866,0.57364135]
[1771590314586,0.57598142,83.896,83.868,0.57364135]
[1771590317609,0.57598142,83.889,83.869,11.92335666]
[1771590318002,0.57598142,83.889,83.87,0.57364135]
[1771590320695,0.57598142,83.889,83.871,11.92307233]
[1771590325824,0.57598142,83.889,83.867,11.92356548]
[1771590328016,0.57598142,83.889,83.868,0.57364135]
[1771590328397,0.57598142,83.887,83.868,0.57364135]
[1771590331218,11.92094032,83.886,83.868,0.57364135]
[1771590331420,0.57598142,83.885,83.868,0.57364135]
[1771590334319,0.57598142,83.89,83.868,0.57364135]
[1771590335118,0.57598142,83.89,83.87,0.57364135]
[1771590335324,0.57598142,83.898,83.87,0.57364135]
[1771590338320,0.57598142,83.898,83.871,11.92307233]
[1771590338526,0.57598142,83.898,83.872,0.54235787]
[1771590341008,0.53282306,83.896,83.874,0.54235787]
[1771590346948,0.53282306,83.889,83.866,0.54235787]
[1771590347114,0.53282306,83.889,83.855,0.54235787]
[1771590347633,0.53282306,83.887,83.857,0.54235787]
[1771590348231,0.53282306,83.879,83.857,0.54235787]
[1771590348916,0.53282306,83.879,83.856,11.92520511]
[1771590349713,0.53282306,83.879,83.857,0.54235787]
[1771590350035,0.53282306,83.888,83.857,0.54235787]
[1771590355042,0.53282306,83.888,83.859,0.54235787]
[1771590356325,0.53282306,83.886,83.859,0.54235787]
[1771590357440,0.53282306,83.886,83.861,0.54235787]
[1771590357628,0.1,83.9,83.86,11.92463629]
[1771590357629,0.53282306,83.897,83.863,0.54235787]
[1771590357828,0.53282306,83.897,83.871,0.54235787]
[1771590358628,0.53282306,83.897,83.866,0.54235787]
[1771590358823,0.53282306,83.889,83.851,0.14216157]
[1771590359138,4.37505747,83.88,83.851,0.14216157]
[1771590359344,0.53282306,83.879,83.851,0.14216157]
[1771590359845,4.37505747,83.87,83.851,0.14216157]
[1771590360039,0.53282306,83.859,83.823,29.82466044]
[1771590360235,0.53282306,83.849,83.823,29.82466044]
[1771590360545,0.53282306,83.849,83.824,0.14216157]
[1771590360738,0.53282306,83.849,83.825,0.45163247]
[1771590361120,0.53282306,83.849,83.821,11.93018455]
[1771590361845,0.53282306,83.847,83.821,0.45067908]
[1771590362542,0.53282306,83.87,83.83,4.37487839]
[1771590362745,0.53282306,83.869,83.841,0.44973664]
[1771590363636,0.53282306,83.869,83.842,0.44880502]
[1771590363947,0.53282306,83.874,83.851,0.44880502]
[1771590364345,0.53282306,83.88,83.852,0.4478841]
[1771590364548,0.53282306,83.88,83.854,0.4478841]
[1771590364846,0.53282306,83.88,83.856,0.44697376]
[1771590367432,0.53282306,83.88,83.858,0.44343577]
[1771590368452,0.48526192,83.899,83.862,0.44257652]
[1771590368629,0.48526192,83.899,83.864,0.44257652]
[1771590368833,0.48526192,83.899,83.865,0.14216157]
[1771590369149,0.48526192,83.899,83.866,0.44257652]
[1771590369538,0.48526192,83.898,83.868,0.44172714]
[1771590371655,0.48526192,83.898,83.87,0.44005754]
[1771590372346,0.48526192,83.898,83.871,0.4392371]
[1771590373537,0.48526192,83.898,83.872,11.92293017]
[1771590373737,0.48526192,83.896,83.872,11.92293017]
[1771590373944,0.48526192,83.889,83.863,0.58058765]
[1771590375135,0.48526192,83.889,83.864,0.43683188]
[1771590378251,0.48526192,83.889,83.866,0.43450858]
[1771590380953,0.48526192,83.889,83.868,0.43300386]
[1771590385045,0.48526192,83.889,83.869,11.92335666]
[1771590391669,0.48526192,83.889,83.869,0.42532156]
[1771590393271,0.48526192,83.889,83.87,12.34724115]
[1771590394368,0.48526192,83.889,83.871,0.42339035]
[1771590394861,0.48526192,83.899,83.871,0.42339035]
[1771590395765,0.48526192,83.899,83.873,0.42276134]
[1771590396454,0.48526192,83.899,83.874,11.92264587]
[1771590396757,0.48526192,83.899,83.876,0.42213956]
[1771590408380,0.48526192,83.899,83.877,12.33689682]
[1771590408886,0.48526192,83.899,83.878,0.41467738]
[1771590411584,0.48526192,83.899,83.871,12.0652339]
[1771590412386,0.48526192,83.899,83.872,0.41259784]
[1771590413677,0.48526192,83.899,83.875,0.41209279]
[1771590415493,0.52617312,83.898,83.875,0.41209279]
[1771590415700,0.52617312,83.898,83.876,11.92236158]
[1771590416578,0.52617312,83.898,83.876,12.33297378]
[1771590416885,0.52617312,83.898,83.877,0.4106122]
[1771590418776,0.52617312,83.898,83.879,0.40965327]
[1771590420396,0.52617312,83.898,83.875,0.40871624]
[1771590424493,0.52617312,83.898,83.877,0.4069059]
[1771590427484,0.1,83.9,83.881,0.40475749]
[1771590427687,11.91539955,83.926,83.891,0.50961659]
[1771590427884,11.91539955,83.926,83.895,0.50961659]
[1771590429599,0.51495534,83.925,83.901,0.50961659]
[1771590430599,0.51495534,83.925,83.887,0.14216157]
[1771590430600,0.51495534,83.909,83.871,0.14216157]
[1771590430802,0.51495534,83.909,83.858,0.42648471]
[1771590431104,0.51495534,83.909,83.881,0.14216157]
[1771590431493,0.51495534,83.909,83.881,12.06381248]
[1771590432210,0.51495534,83.915,83.891,0.14216157]
[1771590432387,0.51495534,83.915,83.892,0.40806842]
[1771590433703,0.51495534,83.915,83.895,0.40767672]
[1771590434502,0.51495534,83.923,83.895,0.40767672]
[1771590434691,0.51495534,83.923,83.897,0.40728952]
[1771590435088,0.51495534,83.921,83.897,0.40728952]
[1771590435409,0.51495534,83.921,83.896,11.9195194]
[1771590435410,0.51495534,83.919,83.896,11.9195194]
[1771590435907,0.51495534,83.909,83.872,0.40690677]
[1771590436098,0.51495534,83.909,83.874,0.40690677]
[1771590438293,0.51495534,83.908,83.876,0.54794627]
[1771590438702,0.51495534,83.907,83.876,0.4057847]
[1771590441211,0.51495534,83.917,83.883,0.40470084]
[1771590441413,0.51495534,83.923,83.891,0.14216157]
[1771590441621,0.51495534,83.923,83.901,0.40470084]
[1771590441834,0.1,83.93,83.902,0.40470084]
[1771590442118,0.51495534,83.929,83.904,0.40470084]
[1771590442320,0.51495534,83.929,83.905,0.5465094]
[1771590444005,0.51495534,83.929,83.905,0.14216157]
[1771590444212,0.51495534,83.927,83.905,0.14216157]
[1771590444601,0.51495534,83.927,83.902,0.14216157]
[1771590445719,0.51495534,83.919,83.891,11.92022982]
[1771590446102,0.51495534,83.917,83.885,12.32405827]
[1771590446421,0.51495534,83.917,83.886,0.40297584]
[1771590448322,0.51495534,83.915,83.888,0.40231326]
[1771590449217,0.51495534,83.915,83.823,35.85]
[1771590449218,0.51495534,83.909,83.871,0.40198767]
[1771590449612,0.51495534,83.909,83.872,0.54414924]
[1771590449812,41.70837503,83.916,83.873,0.54414924]
[1771590449813,0.51495534,83.899,83.873,0.54414924]
[1771590450127,0.51495534,83.899,83.873,0.14216157]
[1771590451137,0.51495534,83.897,83.868,11.92349883]
[1771590452513,0.51495534,83.897,83.867,0.40198767]
[1771590452918,0.51495534,83.895,83.863,0.14216157]
[1771590453123,0.51495534,83.895,83.863,0.54288383]
[1771590453527,0.51495534,83.895,83.864,0.40072226]
[1771590455412,0.51495534,83.889,83.857,11.92497764]
[1771590455628,0.51495534,83.879,83.857,11.92497764]
[1771590460823,0.51495534,83.879,83.854,0.40011115]
[1771590461028,0.51495534,83.879,83.853,0.14216157]
[1771590462411,0.51495534,83.879,83.848,12.32414604]
[1771590462714,0.47513495,83.877,83.848,11.9263429]
[1771590463416,0.47513495,83.877,83.848,12.32387225]
[1771590469146,0.47513495,83.875,83.848,12.32387225]
[1771590470043,0.47513495,83.869,83.848,12.32387225]
[1771590471555,0.47513495,83.869,83.813,11.45063696]
[1771590471556,0.28432314,83.854,83.79,0.2]
[1771590471856,0.47513495,83.819,83.75,4.37139399]
[1771590472095,0.47513495,83.789,83.72,0.2]
[1771590472218,0.47513495,83.789,83.75,4.37139399]
[1771590472420,0.47513495,83.789,83.766,11.93797722]
[1771590472622,0.47513495,83.789,83.767,0.14216157]
[1771590473027,0.47513495,83.789,83.766,11.93797722]
[1771590473424,0.47513495,83.789,83.767,0.14216157]
[1771590473748,0.47513495,83.789,83.759,0.19742923]
[1771590473749,0.47513495,83.789,83.76,11.9388035]
[1771590474146,0.47513495,83.789,83.761,0.14216157]
[1771590474528,0.47513495,83.789,83.76,11.9388035]
[1771590474845,0.47513495,83.789,83.766,11.93796966]
[1771590475745,0.47513495,83.789,83.761,12.13581151]
[1771590475943,0.47513495,83.789,83.762,0.14216157]
[1771590478044,0.47513495,83.798,83.773,0.19648125]
[1771590480529,0.47513495,83.798,83.772,0.14216157]
[1771590481149,0.47513495,83.797,83.767,0.33796004]
[1771590481531,0.47513495,83.797,83.772,0.14216157]
[1771590484452,0.47513495,83.797,83.733,3.69383402]
[1771590484453,0.47513495,83.789,83.763,0.14216157]
[1771590484630,0.47513495,83.789,83.762,11.9384838]
[1771590484834,0.47513495,83.789,83.759,0.19492413]
[1771590485033,0.47513495,83.789,83.763,0.14216157]
[1771590485446,0.47513495,83.789,83.77,12.13731557]
[1771590485647,0.47513495,83.789,83.77,0.2]
[1771590489635,0.48167318,83.779,83.75,11.94024046]
[1771590489837,29.83421887,83.797,83.731,11.94300796]
[1771590489838,11.93773278,83.768,83.731,11.94300796]
[1771590490133,0.48167318,83.759,83.731,11.94300796]
[1771590490544,0.48167318,83.759,83.725,11.94383588]
[1771590490746,41.78206474,83.768,83.72,4.97614964]
[1771590490747,0.48167318,83.749,83.72,0.59329212]
[1771590490954,0.48167318,83.749,83.72,0.2]
[1771590491938,0.48167318,83.747,83.72,0.2]
[1771590493831,11.94058365,83.748,83.72,0.2]
[1771590493832,0.48167318,83.739,83.72,0.2]
[1771590494036,0.48167318,83.729,83.695,0.39271797]
[1771590494443,4.38285752,83.72,83.695,11.94803268]
[1771590494659,0.48167318,83.719,83.69,0.2]
[1771590495158,4.38285752,83.72,83.68,0.2]
[1771590495159,0.48167318,83.709,83.68,0.2]
[1771590495462,15.20681374,83.729,83.682,0.48477106]
[1771590495662,4.38285752,83.73,83.682,0.48477106]
[1771590495954,4.38285752,83.73,83.684,0.48477106]
[1771590496260,15.20681374,83.748,83.693,0.48477106]
[1771590496261,4.38285752,83.74,83.693,0.48477106]
[1771590496441,15.20681374,83.748,83.695,0.48477106]
[1771590496442,4.38285752,83.73,83.695,0.48477106]
[1771590497341,0.48167318,83.729,83.695,0.48477106]
[1771590497539,4.38285752,83.71,83.686,0.48477106]
[1771590497860,0.48167318,83.709,83.686,0.48477106]
[1771590498244,0.48167318,83.719,83.687,11.94928722]
[1771590498449,0.48167318,83.719,83.688,0.48477106]
[1771590498847,0.48167318,83.699,83.68,0.2]
[1771590499359,0.48167318,83.713,83.682,0.48477106]
[1771590499557,4.38285752,83.71,83.682,0.48477106]
[1771590499746,4.8645307,83.71,83.682,0.48477106]
[1771590500138,4.38285752,83.7,83.682,0.48477106]
[1771590500346,4.38285752,83.7,83.68,0.2]
[1771590500347,0.48167318,83.699,83.68,0.2]
[1771590501548,0.48167318,83.689,83.68,0.2]
[1771590502647,4.38285752,83.7,83.681,11.95014399]
[1771590502865,4.38285752,83.7,83.681,12.43491505]
[1771590504262,0.48167318,83.699,83.68,0.2]
[1771590504443,11.94771679,83.698,83.68,0.2]
[1771590504765,0.48167318,83.697,83.68,0.2]
[1771590505749,0.48167318,83.697,83.68,12.15023999]
[1771590505955,0.48167318,83.703,83.681,0.48477106]
[1771590506959,0.48167318,83.703,83.683,0.48477106]
[1771590508467,11.94624952,83.709,83.683,0.48477106]
[1771590508650,0.48167318,83.708,83.683,0.48477106]
[1771590509268,0.48167318,83.708,83.685,0.48477106]
[1771590511258,11.94643219,83.707,83.685,0.48477106]
[1771590511456,12.42810537,83.707,83.685,0.48477106]
[1771590511965,4.38285752,83.7,83.685,0.48477106]
[1771590513848,0.48167318,83.706,83.685,0.48477106]
[1771590514160,0.48167318,83.706,83.687,0.48477106]
[1771590514561,0.48167318,83.706,83.68,0.2]
[1771590514869,4.38285752,83.7,83.683,0.48477106]
[1771590515066,0.48167318,83.707,83.683,0.48477106]
[1771590515368,12.42816662,83.707,83.683,0.48477106]
[1771590515751,0.48167318,83.706,83.683,0.48477106]
[1771590517570,0.49622237,83.712,83.685,0.4629538]
[1771590517771,4.87907989,83.71,83.685,0.4629538]
[1771590518274,4.38285752,83.71,83.685,0.4629538]
[1771590518475,0.49622237,83.709,83.685,0.4629538]
[1771590519674,0.49622237,83.709,83.686,11.94943001]
[1771590519873,0.49622237,83.709,83.687,0.4629538]
[1771590521080,0.49622237,83.709,83.689,0.4629538]
[1771590522363,0.49622237,83.709,83.69,12.41181268]
[1771590523281,0.49622237,83.709,83.691,0.4629538]
[1771590525169,0.49622237,83.709,83.692,11.94857334]
[1771590526075,3.69383402,83.719,83.682,0.4629538]
[1771590526076,4.38285752,83.7,83.682,0.4629538]
[1771590526254,0.49622237,83.705,83.682,0.4629538]
[1771590526655,11.94531963,83.715,83.683,11.94985839]
[1771590526880,4.38285752,83.71,83.684,0.4629538]
[1771590527693,4.87907989,83.71,83.684,0.4629538]
[1771590528072,0.49622237,83.709,83.684,0.4629538]
[1771590529474,0.49622237,83.709,83.686,0.4629538]
[1771590529883,4.38285752,83.71,83.686,0.4629538]
[1771590530386,4.87907989,83.71,83.686,0.4629538]
[1771590530586,0.49622237,83.709,83.688,0.4629538]
[1771590531481,4.38285752,83.7,83.685,0.4629538]
[1771590531810,0.49622237,83.706,83.685,0.4629538]
[1771590532086,4.38285752,83.71,83.681,0.4629538]
[1771590532087,4.38285752,83.7,83.681,0.4629538]
[1771590532294,0.49622237,83.709,83.681,0.4629538]
[1771590532681,11.94628948,83.708,83.683,0.4629538]
[1771590532993,4.38285752,83.71,83.685,0.4629538]
[1771590533287,4.87907989,83.71,83.685,0.4629538]
[1771590533493,0.49622237,83.709,83.685,0.4629538]
[1771590535493,4.38285752,83.71,83.687,0.4629538]
[1771590537495,4.38285752,83.7,83.687,0.4629538]
[1771590537988,4.38285752,83.7,83.689,0.4629538]
[1771590540198,4.38285752,83.7,83.68,0.2]
[1771590541298,4.38285752,83.7,83.681,11.95014399]
[1771590542296,4.38285752,83.7,83.682,0.4629538]
[1771590542896,0.49622237,83.689,83.675,11.95093477]
[1771590543093,4.38285752,83.69,83.676,0.4629538]
[1771590543799,3.75531063,83.69,83.676,0.4629538]
[1771590543990,4.39348718,83.69,83.676,0.4629538]
[1771590544306,4.39348718,83.7,83.68,0.4629538]
[1771590545296,4.39348718,83.7,83.682,0.50630582]
[1771590545692,4.39348718,83.69,83.682,0.50630582]
[1771590546702,4.39348718,83.69,83.681,11.95014399]
[1771590547198,0.50116087,83.719,83.682,0.46155345]
[1771590547401,11.95209895,83.76,83.673,0.14216157]
[1771590547402,4.39348718,83.72,83.686,0.46155345]
[1771590547603,4.39348718,83.72,83.692,0.46155345]
[1771590548303,4.39348718,83.7,83.685,11.9495728]
[1771590548508,4.39348718,83.7,83.686,0.46155345]
[1771590548893,4.39348718,83.7,83.685,11.9495728]
[1771590548895,4.89464805,83.7,83.685,11.9495728]
[1771590550408,4.39348718,83.7,83.686,0.46155345]
[1771590552299,4.89464805,83.7,83.686,0.46155345]
[1771590554419,0.50116087,83.699,83.684,11.94970111]
[1771590554916,0.50116087,83.699,83.684,0.46155345]
[1771590555493,4.39348718,83.7,83.684,0.46155345]
[1771590556119,4.39348718,83.7,83.686,0.46155345]
[1771590557991,0.50116087,83.704,83.686,0.46155345]
[1771590561513,4.39348718,83.7,83.686,0.46155345]
[1771590562711,0.50116087,83.699,83.681,0.46155345]
[1771590562913,0.50116087,83.699,83.682,11.95000119]
[1771590563898,0.50116087,83.699,83.682,0.46155345]
[1771590566206,0.50116087,83.699,83.683,12.41141184]
[1771590566516,0.50116087,83.699,83.684,0.46155345]
[1771590567513,0.50116087,83.699,83.685,11.9495728]
[1771590568313,0.50116087,83.699,83.671,0.46155345]
[1771590569614,0.50116087,83.697,83.672,0.46155345]
[1771590569813,0.50116087,83.695,83.672,0.46155345]
[1771590570008,0.50116087,83.695,83.673,0.46155345]
[1771590570320,0.50116087,83.695,83.671,0.46155345]
[1771590570698,29.86586963,83.708,83.671,0.46155345]
[1771590570699,0.50116087,83.689,83.671,0.46155345]
[1771590571818,0.50116087,83.699,83.673,0.46155345]
[1771590572028,0.50116087,83.699,83.676,0.14216157]
[1771590572210,0.50116087,83.699,83.672,41.83000286]
[1771590572211,0.50116087,83.699,83.673,0.46155345]
[1771590572927,0.50116087,83.689,83.67,0.2]
[1771590573919,4.39348718,83.68,83.662,0.46155345]
[1771590574118,4.89464805,83.68,83.662,0.46155345]
[1771590574327,4.89464805,83.69,83.662,0.46155345]
[1771590575409,4.89464805,83.69,83.66,0.2]
[1771590575410,4.39348718,83.69,83.664,0.46155345]
[1771590575805,15.03392991,83.719,83.666,0.46155345]
[1771590575806,4.39348718,83.7,83.666,0.46155345]
[1771590576010,4.39348718,83.7,83.663,41.83450269]
[1771590576011,0.50116087,83.704,83.676,0.14216157]
[1771590576224,0.50116087,83.704,83.681,0.46155345]
[1771590580933,0.50116087,83.704,83.683,0.50567829]
[1771590582313,0.49317617,83.709,83.685,0.50567829]
[1771590586211,0.49317617,83.708,83.685,0.50567829]
[1771590586714,0.49317617,83.708,83.686,11.94943001]
[1771590586906,0.49317617,83.708,83.685,12.4552056]
[1771590588338,0.49317617,83.708,83.679,0.14216157]
[1771590588633,0.49317617,83.708,83.681,0.14216157]
[1771590588814,0.49317617,83.708,83.682,0.50567829]
[1771590589017,3.69383402,83.737,83.682,0.50567829]
[1771590589018,0.49317617,83.699,83.682,0.50567829]
[1771590592825,0.49317617,83.699,83.684,0.50567829]
[1771590594722,0.49317617,83.699,83.685,11.9495728]
[1771590595431,0.49317617,83.699,83.685,12.45525109]
[1771590595641,0.49317617,83.699,83.686,0.50567829]
[1771590596139,0.49317617,83.726,83.692,0.50567829]
[1771590597239,0.49317617,83.726,83.698,0.14216157]
[1771590597450,0.49317617,83.726,83.701,0.50567829]
[1771590599447,0.49317617,83.726,83.702,11.94714582]
[1771590599630,0.49317617,83.726,83.703,0.50567829]
[1771590600852,0.49317617,83.726,83.705,0.50567829]
[1771590602870,0.49317617,83.734,83.709,0.50567829]
[1771590603058,0.49317617,83.749,83.713,0.50567829]
[1771590603360,0.49317617,83.754,83.722,0.50567829]
[1771590603573,0.49317617,83.76,83.731,0.50567829]
[1771590603855,0.49317617,83.769,83.731,0.50567829]
[1771590604664,0.50655091,83.767,83.731,0.50567829]
[1771590604850,0.50655091,83.759,83.733,0.48534778]
[1771590605451,4.39348718,83.75,83.733,0.48534778]
[1771590605667,4.39348718,83.75,83.728,0.48534778]
[1771590605668,0.50655091,83.749,83.728,0.48534778]
[1771590606162,0.50655091,83.759,83.732,0.48534778]
[1771590607034,0.47341263,83.749,83.731,0.14216157]
[1771590607234,0.47341263,83.749,83.732,11.94286533]
[1771590608059,0.47341263,83.749,83.733,0.50820832]
[1771590609548,0.47341263,83.749,83.734,11.94258007]
[1771590610868,0.47341263,83.749,83.726,12.45189873]
[1771590611044,0.47341263,83.749,83.727,0.50820832]
[1771590611445,0.47341263,83.763,83.729,0.50820832]
[1771590611659,0.47341263,83.759,83.731,0.50820832]
[1771590612570,0.47341263,83.759,83.733,0.50820832]
[1771590612860,0.47341263,83.758,83.733,0.50820832]
[1771590613488,0.47341263,83.739,83.701,0.50820832]
[1771590613783,0.47341263,83.739,83.709,0.50820832]
[1771590613988,0.47341263,83.739,83.711,0.50820832]
[1771590614793,0.47341263,83.739,83.713,0.50820832]
[1771590615394,0.47341263,83.744,83.713,0.50820832]
[1771590615686,0.47341263,83.744,83.714,0.14216157]
[1771590615887,0.47341263,83.744,83.718,0.14216157]
[1771590616071,0.47341263,83.744,83.721,0.50820832]
[1771590619695,0.47341263,83.744,83.723,0.50820832]
[1771590621599,29.84223448,83.774,83.725,0.50820832]
[1771590621803,15.9377075,83.794,83.733,0.50820832]
[1771590621804,4.38770833,83.77,83.733,0.50820832]
[1771590622100,4.38770833,83.77,83.731,0.28432314]
[1771590622101,4.38770833,83.77,83.741,0.50820832]
[1771590622474,11.93630786,83.778,83.741,0.50820832]
[1771590623795,0.47341263,83.775,83.743,0.50820832]
[1771590623975,4.86112096,83.78,83.749,0.50820832]
[1771590624297,4.86112096,83.78,83.751,0.50820832]
[1771590624498,0.47341263,83.78,83.751,0.50820832]
[1771590624678,12.13460375,83.79,83.755,0.50820832]
[1771590624879,12.13460375,83.79,83.743,0.14216157]
[1771590624880,0.2,83.79,83.763,0.50820832]
[1771590625098,0.2,83.79,83.769,0.50820832]
[1771590625306,0.2,83.79,83.761,0.28432314]
[1771590625307,0.2,83.79,83.771,0.50820832]
[1771590625882,0.2,83.79,83.773,0.50820832]
[1771590626897,4.58770833,83.8,83.777,0.50820832]
[1771590627205,0.2,83.8,83.777,0.50820832]
[1771590627698,0.2,83.8,83.78,0.14216157]